[Event "*** Titled Tuesday Blitz"]
[Site "Chess.com"]
[Date "2020.05.19"]
[Round "1"]
[White "mishikomchedlishvili"]
[Black "aa175"]
[Result "1-0"]
[WhiteElo "2857"]
[BlackElo "2438"]
[TimeControl "180+1"]
[EndTime "12:06:55 PDT"]
[Termination "mishikomchedlishvili won on time"]

1. d4 {[%clk 0:03:00.2]} 1... e5 {[%clk 0:02:57.6]} 2. dxe5 {[%clk 0:02:59.3]}
2... Nc6 {[%clk 0:02:57.6]} 3. Nf3 {[%clk 0:02:57.8]} 3... Qe7 {[%clk
0:02:57.2]} 4. Nc3 {[%clk 0:02:55.7]} 4... Nxe5 {[%clk 0:02:57]} 5. Nd5 {[%clk
0:02:54.2]} 5... Nxf3+ {[%clk 0:02:57.1]} 6. gxf3 {[%clk 0:02:53.6]} 6... Qd8
{[%clk 0:02:58]} 7. e4 {[%clk 0:02:47.9]} 7... Nf6 {[%clk 0:02:55.6]} 8. Bg5
{[%clk 0:02:45]} 8... Be7 {[%clk 0:02:49.7]} 9. Nxe7 {[%clk 0:02:44.5]} 9...
Qxe7 {[%clk 0:02:50.6]} 10. Qd4 {[%clk 0:02:44.5]} 10... h6 {[%clk 0:02:44.4]}
11. Bh4 {[%clk 0:02:43]} 11... d6 {[%clk 0:02:40.4]} 12. O-O-O {[%clk
0:02:39.7]} 12... Qe5 {[%clk 0:02:32.4]} 13. Qe3 {[%clk 0:02:27.9]} 13... Be6
{[%clk 0:02:17.2]} 14. Rg1 {[%clk 0:02:24.9]} 14... g5 {[%clk 0:02:12.5]} 15.
Bg3 {[%clk 0:02:22.8]} 15... Qa5 {[%clk 0:02:09.4]} 16. a3 {[%clk 0:02:22.1]}
16... O-O-O {[%clk 0:01:49.8]} 17. f4 {[%clk 0:02:16.2]} 17... Ng4 {[%clk
0:01:47.1]} 18. Qe2 {[%clk 0:02:08.8]} 18... gxf4 {[%clk 0:01:41.3]} 19. Bxf4
{[%clk 0:02:08.9]} 19... Ne5 {[%clk 0:01:36.5]} 20. Qe3 {[%clk 0:01:59.1]} 20...
Nc4 {[%clk 0:01:29.6]} 21. Qd4 {[%clk 0:01:56.9]} 21... Qc5 {[%clk 0:01:20]} 22.
Qxc5 {[%clk 0:01:54.5]} 22... dxc5 {[%clk 0:01:20.9]} 23. Rxd8+ {[%clk
0:01:54.2]} 23... Rxd8 {[%clk 0:01:21.8]} 24. Bxh6 {[%clk 0:01:52.4]} 24... Ne5
{[%clk 0:01:17.9]} 25. Be2 {[%clk 0:01:38]} 25... Bc4 {[%clk 0:00:58]} 26. Bd1
{[%clk 0:01:37.1]} 26... Rh8 {[%clk 0:00:47.9]} 27. Bg7 {[%clk 0:01:35.1]} 27...
Rg8 {[%clk 0:00:45.9]} 28. Rg3 {[%clk 0:01:35.1]} 28... Ng6 {[%clk 0:00:42.5]}
29. Bf6 {[%clk 0:01:35.1]} 29... Kd7 {[%clk 0:00:37.6]} 30. h4 {[%clk
0:01:33.1]} 30... Ke6 {[%clk 0:00:38]} 31. Bg5 {[%clk 0:01:31.2]} 31... f6
{[%clk 0:00:38.3]} 32. Be3 {[%clk 0:01:30.6]} 32... Kd6 {[%clk 0:00:30.6]} 33.
h5 {[%clk 0:01:27.1]} 33... Ne5 {[%clk 0:00:26.4]} 34. Bf4 {[%clk 0:01:16.6]}
34... Rxg3 {[%clk 0:00:24.3]} 35. Bxg3 {[%clk 0:01:16.5]} 35... Bf7 {[%clk
0:00:23.8]} 36. Kd2 {[%clk 0:01:14.3]} 36... Ke6 {[%clk 0:00:21.1]} 37. Be2
{[%clk 0:01:11.1]} 37... f5 {[%clk 0:00:17.8]} 38. exf5+ {[%clk 0:01:06.6]}
38... Kxf5 {[%clk 0:00:18.7]} 39. Bxe5 {[%clk 0:01:01.2]} 39... Kxe5 {[%clk
0:00:19.6]} 40. h6 {[%clk 0:01:01.5]} 40... Kf6 {[%clk 0:00:13.8]} 41. Bd3
{[%clk 0:01:01.4]} 41... b6 {[%clk 0:00:09.2]} 42. Ke3 {[%clk 0:01:01.3]} 42...
a5 {[%clk 0:00:03.8]} 43. c3 {[%clk 0:01:00.6]} 43... Bd5 {[%clk 0:00:02.6]} 44.
Kf4 {[%clk 0:01:00.3]} 44... Bc6 {[%clk 0:00:01.6]} 45. h7 {[%clk 0:00:59.8]}
45... Kg7 {[%clk 0:00:01.2]} 46. Ke5 {[%clk 0:01:00]} 1-0

[Event "*** Titled Tuesday Blitz"]
[Site "Chess.com"]
[Date "2020.05.19"]
[Round "1"]
[White "ZEN-22"]
[Black "FMOlexandrProhorov"]
[Result "1-0"]
[WhiteElo "2504"]
[BlackElo "2123"]
[TimeControl "180+1"]
[EndTime "12:06:55 PDT"]
[Termination "ZEN-22 won on time"]

1. e4 {[%clk 0:02:58.5]} 1... c5 {[%clk 0:02:55.5]} 2. b3 {[%clk 0:02:52.1]}
2... Nc6 {[%clk 0:02:52]} 3. Bb2 {[%clk 0:02:53]} 3... d6 {[%clk 0:02:50.3]} 4.
Nf3 {[%clk 0:02:53.2]} 4... e5 {[%clk 0:02:48.7]} 5. Bb5 {[%clk 0:02:42.5]} 5...
Bd7 {[%clk 0:02:41.3]} 6. h3 {[%clk 0:02:41.1]} 6... Nf6 {[%clk 0:02:38.8]} 7.
d3 {[%clk 0:02:37.6]} 7... Be7 {[%clk 0:02:28.4]} 8. O-O {[%clk 0:02:34.8]} 8...
O-O {[%clk 0:02:27.8]} 9. c3 {[%clk 0:02:35.2]} 9... Qb6 {[%clk 0:02:17.9]} 10.
Na3 {[%clk 0:02:32.9]} 10... Rfe8 {[%clk 0:02:06.9]} 11. Re1 {[%clk 0:02:29.8]}
11... a6 {[%clk 0:01:59]} 12. Bxc6 {[%clk 0:02:28.7]} 12... Bxc6 {[%clk
0:01:57.4]} 13. Nc4 {[%clk 0:02:27.8]} 13... Qc7 {[%clk 0:01:56.6]} 14. Ne3
{[%clk 0:02:27.2]} 14... g6 {[%clk 0:01:53.8]} 15. c4 {[%clk 0:02:26.8]} 15...
Bf8 {[%clk 0:01:51.6]} 16. Nd5 {[%clk 0:02:25.9]} 16... Bxd5 {[%clk 0:01:43.8]}
17. cxd5 {[%clk 0:02:25.6]} 17... Bg7 {[%clk 0:01:39.7]} 18. Rc1 {[%clk
0:02:25.8]} 18... Qd7 {[%clk 0:01:34.8]} 19. a3 {[%clk 0:02:24.2]} 19... Nh5
{[%clk 0:01:31.2]} 20. b4 {[%clk 0:02:23.4]} 20... b6 {[%clk 0:01:23.4]} 21. Nd2
{[%clk 0:02:19.3]} 21... Nf4 {[%clk 0:01:17.7]} 22. Nc4 {[%clk 0:02:18.4]} 22...
Rab8 {[%clk 0:01:17.4]} 23. bxc5 {[%clk 0:02:17.1]} 23... bxc5 {[%clk
0:01:14.6]} 24. Bc3 {[%clk 0:02:17.3]} 24... Bh6 {[%clk 0:01:00.6]} 25. Rb1
{[%clk 0:02:09.7]} 25... Rb5 {[%clk 0:00:52.6]} 26. Bd2 {[%clk 0:02:06.5]} 26...
Reb8 {[%clk 0:00:46.8]} 27. Rxb5 {[%clk 0:01:57.7]} 27... Rxb5 {[%clk 0:00:46]}
28. Na5 {[%clk 0:01:50]} 28... Kg7 {[%clk 0:00:45.1]} 29. Nc6 {[%clk 0:01:49.1]}
29... Qb7 {[%clk 0:00:34.9]} 30. a4 {[%clk 0:01:45.9]} 30... Rb2 {[%clk
0:00:30.5]} 31. Na5 {[%clk 0:01:44]} 31... Qb8 {[%clk 0:00:28.1]} 32. Nc4 {[%clk
0:01:41.7]} 32... Rb7 {[%clk 0:00:24.3]} 33. Kh2 {[%clk 0:01:36.3]} 33... Nh5
{[%clk 0:00:12.6]} 34. Bxh6+ {[%clk 0:01:34.8]} 34... Kxh6 {[%clk 0:00:12.8]}
35. g3 {[%clk 0:01:35.6]} 35... Nf6 {[%clk 0:00:11.4]} 36. Qf3 {[%clk
0:01:34.7]} 36... Kg7 {[%clk 0:00:11.1]} 37. g4 {[%clk 0:01:24.7]} 37... Rb3
{[%clk 0:00:10.3]} 38. g5 {[%clk 0:01:24]} 38... Nh5 {[%clk 0:00:09.6]} 39. Rg1
{[%clk 0:01:22.6]} 39... Nf4 {[%clk 0:00:08.8]} 40. Rg4 {[%clk 0:01:21]} 40...
Rxd3 {[%clk 0:00:06.4]} 41. Rxf4 {[%clk 0:01:21.3]} 41... Rxf3 {[%clk 0:00:06]}
42. Rxf3 {[%clk 0:01:21.6]} 42... Qb1 {[%clk 0:00:05]} 43. Nxd6 {[%clk
0:01:20.5]} 43... Qd1 {[%clk 0:00:03.7]} 44. Rxf7+ {[%clk 0:01:18.5]} 44... Kg8
{[%clk 0:00:04.6]} 45. Rf6 {[%clk 0:01:19.4]} 45... Qe2 {[%clk 0:00:02.5]} 46.
h4 {[%clk 0:01:20.3]} 46... c4 {[%clk 0:00:01.3]} 47. Kg2 {[%clk 0:01:20.4]}
47... c3 {[%clk 0:00:01.6]} 48. Rf7 {[%clk 0:01:18]} 48... c2 {[%clk 0:00:01.8]}
49. Rc7 {[%clk 0:01:18.9]} 49... Qd2 {[%clk 0:00:01.5]} 50. Rc8+ {[%clk
0:01:17.2]} 50... Kg7 {[%clk 0:00:01.1]} 51. Rc4 {[%clk 0:01:18.1]} 1-0

[Event "*** Titled Tuesday Blitz"]
[Site "Chess.com"]
[Date "2020.05.19"]
[Round "1"]
[White "Shukh_Nikolay"]
[Black "Karina_Ivanova"]
[Result "1-0"]
[WhiteElo "2527"]
[BlackElo "2199"]
[TimeControl "180+1"]
[EndTime "12:06:56 PDT"]
[Termination "Shukh_Nikolay won by resignation"]

1. e4 {[%clk 0:03:00.9]} 1... c6 {[%clk 0:02:59.1]} 2. d4 {[%clk 0:02:59.9]}
2... d5 {[%clk 0:03:00]} 3. Nd2 {[%clk 0:02:59.7]} 3... dxe4 {[%clk 0:03:00.1]}
4. Nxe4 {[%clk 0:02:59.4]} 4... Bf5 {[%clk 0:03:01]} 5. Ng3 {[%clk 0:02:59]}
5... Bg6 {[%clk 0:03:01.4]} 6. N1e2 {[%clk 0:02:58.9]} 6... e6 {[%clk 0:03:01]}
7. Nf4 {[%clk 0:02:58]} 7... Bd6 {[%clk 0:03:00.2]} 8. c3 {[%clk 0:02:57.1]}
8... Qc7 {[%clk 0:02:58.4]} 9. Qf3 {[%clk 0:02:55.6]} 9... Ne7 {[%clk
0:02:50.8]} 10. h4 {[%clk 0:02:47.4]} 10... h6 {[%clk 0:02:44.4]} 11. Nxg6
{[%clk 0:02:46.3]} 11... Nxg6 {[%clk 0:02:44]} 12. h5 {[%clk 0:02:46.2]} 12...
Ne7 {[%clk 0:02:37.9]} 13. Bd2 {[%clk 0:02:44.7]} 13... Nd7 {[%clk 0:02:36.8]}
14. O-O-O {[%clk 0:02:43.7]} 14... O-O-O {[%clk 0:02:35.9]} 15. Qxf7 {[%clk
0:02:23.2]} 15... e5 {[%clk 0:02:27]} 16. Ne4 {[%clk 0:02:06.5]} 16... exd4
{[%clk 0:02:20.9]} 17. Qe6 {[%clk 0:01:29.8]} 17... Bf4 {[%clk 0:01:48.4]} 18.
Qxe7 {[%clk 0:00:54.5]} 18... Rhe8 {[%clk 0:01:44.6]} 19. Qxg7 {[%clk
0:00:52.6]} 19... Rxe4 {[%clk 0:01:41.7]} 20. Bd3 {[%clk 0:00:52.1]} 20... Bxd2+
{[%clk 0:01:39.8]} 21. Rxd2 {[%clk 0:00:51.9]} 21... Re6 {[%clk 0:01:34.3]} 22.
Bf5 {[%clk 0:00:47.8]} 22... dxc3 {[%clk 0:01:32.8]} 23. Qxc3 {[%clk 0:00:46.3]}
23... Rd6 {[%clk 0:01:30.1]} 24. Rhd1 {[%clk 0:00:43]} 24... Rxd2 {[%clk
0:01:28.6]} 25. Qxd2 {[%clk 0:00:42.8]} 25... b6 {[%clk 0:01:09.4]} 26. g4
{[%clk 0:00:41.3]} 26... c5 {[%clk 0:01:03.7]} 27. f4 {[%clk 0:00:39.7]} 27...
Qc6 {[%clk 0:00:57.7]} 28. Bxd7+ {[%clk 0:00:37.3]} 28... Rxd7 {[%clk
0:00:57.2]} 29. Qxd7+ {[%clk 0:00:37]} 29... Qxd7 {[%clk 0:00:57.4]} 30. Rxd7
{[%clk 0:00:36.6]} 30... Kxd7 {[%clk 0:00:57.5]} 31. g5 {[%clk 0:00:36.5]} 31...
Ke6 {[%clk 0:00:56.2]} 32. gxh6 {[%clk 0:00:31.5]} 32... Kf6 {[%clk 0:00:56]}
33. f5 {[%clk 0:00:30.9]} 33... b5 {[%clk 0:00:36.5]} 34. Kc2 {[%clk 0:00:30.7]}
34... a5 {[%clk 0:00:36.7]} 35. Kc3 {[%clk 0:00:30.3]} 35... a4 {[%clk
0:00:35.5]} 36. a3 {[%clk 0:00:30.2]} 36... Kf7 {[%clk 0:00:30.7]} 37. Kd3
{[%clk 0:00:27.8]} 37... Kf6 {[%clk 0:00:26.5]} 38. Ke4 {[%clk 0:00:27.2]} 38...
b4 {[%clk 0:00:26]} 39. Kd3 {[%clk 0:00:26.8]} 39... Kf7 {[%clk 0:00:22.9]} 40.
Kc4 {[%clk 0:00:26.4]} 1-0

[Event "*** Titled Tuesday Blitz"]
[Site "Chess.com"]
[Date "2020.05.19"]
[Round "1"]
[White "dennisodessa"]
[Black "csati17"]
[Result "0-1"]
[WhiteElo "2223"]
[BlackElo "2543"]
[TimeControl "180+1"]
[EndTime "12:06:57 PDT"]
[Termination "csati17 won on time"]

1. d4 {[%clk 0:02:48.2]} 1... Nf6 {[%clk 0:02:59.9]} 2. c4 {[%clk 0:02:47]} 2...
g6 {[%clk 0:02:58.8]} 3. Nc3 {[%clk 0:02:46.4]} 3... d5 {[%clk 0:02:59.2]} 4.
Bg5 {[%clk 0:02:45.5]} 4... Ne4 {[%clk 0:02:58.8]} 5. Nxe4 {[%clk 0:02:45.6]}
5... dxe4 {[%clk 0:02:58.8]} 6. Qd2 {[%clk 0:02:46.5]} 6... Bg7 {[%clk
0:02:57.6]} 7. e3 {[%clk 0:02:46.7]} 7... c5 {[%clk 0:02:57]} 8. d5 {[%clk
0:02:46.6]} 8... Qb6 {[%clk 0:02:53.6]} 9. Rb1 {[%clk 0:02:45]} 9... h6 {[%clk
0:02:37.9]} 10. Bh4 {[%clk 0:02:43.8]} 10... g5 {[%clk 0:02:34.4]} 11. Bg3
{[%clk 0:02:43.7]} 11... O-O {[%clk 0:02:35]} 12. Ne2 {[%clk 0:02:43.4]} 12...
Bf5 {[%clk 0:02:31.1]} 13. Nc3 {[%clk 0:02:40.5]} 13... Nd7 {[%clk 0:02:30.9]}
14. Be2 {[%clk 0:02:40.1]} 14... Qg6 {[%clk 0:02:23.5]} 15. O-O {[%clk
0:02:21.8]} 15... Ne5 {[%clk 0:02:22.6]} 16. Rbd1 {[%clk 0:01:56.8]} 16... Rad8
{[%clk 0:02:14.4]} 17. a3 {[%clk 0:01:35.3]} 17... h5 {[%clk 0:01:49.4]} 18. h4
{[%clk 0:01:12.6]} 18... gxh4 {[%clk 0:01:47]} 19. Bxh4 {[%clk 0:01:13.5]} 19...
Nf3+ {[%clk 0:01:42.2]} 20. Bxf3 {[%clk 0:01:12.9]} 20... exf3 {[%clk
0:01:43.1]} 21. Bg3 {[%clk 0:00:55.9]} 21... h4 {[%clk 0:01:41.8]} 22. gxf3
{[%clk 0:00:51.7]} 22... hxg3 {[%clk 0:01:34.9]} 23. fxg3 {[%clk 0:00:52.4]}
23... Bh3 {[%clk 0:01:33.9]} 24. Rf2 {[%clk 0:00:43.6]} 24... Qxg3+ {[%clk
0:01:28.6]} 25. Kh1 {[%clk 0:00:43.6]} 25... Rd6 {[%clk 0:01:22.1]} 26. Rg1
{[%clk 0:00:42.3]} 26... Qh4 {[%clk 0:01:20.6]} 27. Rh2 {[%clk 0:00:36.7]} 27...
Rg6 {[%clk 0:01:05.2]} 28. Ne2 {[%clk 0:00:22.1]} 28... Qh5 {[%clk 0:00:46.8]}
29. Rxg6 {[%clk 0:00:01.2]} 29... fxg6 {[%clk 0:00:47.7]} 30. Ng1 {[%clk
0:00:01.9]} 30... Rxf3 {[%clk 0:00:47.8]} 31. Nxf3 {[%clk 0:00:02]} 31... Qxf3+
{[%clk 0:00:47.8]} 32. Kg1 {[%clk 0:00:02.9]} 32... Bh6 {[%clk 0:00:43.6]} 0-1

[Event "*** Titled Tuesday Blitz"]
[Site "Chess.com"]
[Date "2020.05.19"]
[Round "1"]
[White "esskeettit"]
[Black "ChessQueen"]
[Result "0-1"]
[WhiteElo "2325"]
[BlackElo "2620"]
[TimeControl "180+1"]
[EndTime "12:07:00 PDT"]
[Termination "ChessQueen won by resignation"]

1. d4 {[%clk 0:03:00.9]} 1... Nf6 {[%clk 0:02:58.2]} 2. c4 {[%clk 0:02:59.1]}
2... e6 {[%clk 0:02:58]} 3. Nc3 {[%clk 0:02:58.2]} 3... Bb4 {[%clk 0:02:57.1]}
4. e3 {[%clk 0:02:57.4]} 4... b6 {[%clk 0:02:54.6]} 5. Ne2 {[%clk 0:02:56.1]}
5... Bb7 {[%clk 0:02:52]} 6. a3 {[%clk 0:02:55.9]} 6... Be7 {[%clk 0:02:49.9]}
7. Nf4 {[%clk 0:02:54.1]} 7... O-O {[%clk 0:02:45]} 8. Bd3 {[%clk 0:02:52]} 8...
d6 {[%clk 0:02:44]} 9. O-O {[%clk 0:02:49.3]} 9... Nbd7 {[%clk 0:02:42.8]} 10.
Bc2 {[%clk 0:02:45.4]} 10... Re8 {[%clk 0:02:28.8]} 11. b3 {[%clk 0:02:42.7]}
11... Nf8 {[%clk 0:02:26.4]} 12. Bb2 {[%clk 0:02:41.4]} 12... c5 {[%clk
0:02:16.6]} 13. d5 {[%clk 0:02:38.8]} 13... e5 {[%clk 0:02:16.3]} 14. Nfe2
{[%clk 0:02:28.6]} 14... a6 {[%clk 0:02:11.4]} 15. Ng3 {[%clk 0:02:23.8]} 15...
b5 {[%clk 0:02:09.8]} 16. Rb1 {[%clk 0:01:34.7]} 16... Ng6 {[%clk 0:02:05.3]}
17. Qe2 {[%clk 0:01:34.5]} 17... Rb8 {[%clk 0:02:03.8]} 18. Rfd1 {[%clk
0:01:32.6]} 18... Bc8 {[%clk 0:01:56.5]} 19. cxb5 {[%clk 0:01:29.5]} 19... axb5
{[%clk 0:01:56.5]} 20. Nxb5 {[%clk 0:01:28.4]} 20... Ba6 {[%clk 0:01:56.1]} 21.
Bd3 {[%clk 0:01:28.6]} 21... Nxd5 {[%clk 0:01:51.8]} 22. Nxd6 {[%clk 0:01:17.7]}
22... Bxd3 {[%clk 0:01:49]} 23. Qxd3 {[%clk 0:01:18.6]} 23... Qxd6 {[%clk
0:01:48.1]} 24. Qxd5 {[%clk 0:01:18.7]} 24... Qxd5 {[%clk 0:01:48.5]} 25. Rxd5
{[%clk 0:01:19.1]} 25... Rxb3 {[%clk 0:01:49.2]} 26. Nf5 {[%clk 0:00:43.8]}
26... Bf8 {[%clk 0:01:43.9]} 27. Rd2 {[%clk 0:00:20.1]} 27... c4 {[%clk
0:01:43.6]} 28. Rc1 {[%clk 0:00:18.3]} 28... Reb8 {[%clk 0:01:34.9]} 29. Bc3
{[%clk 0:00:12.7]} 29... Bxa3 {[%clk 0:01:34]} 30. Rcd1 {[%clk 0:00:12.2]} 30...
Rxc3 {[%clk 0:01:30.3]} 31. Rd8+ {[%clk 0:00:12.2]} 31... Rxd8 {[%clk
0:01:30.5]} 32. Rxd8+ {[%clk 0:00:13.1]} 32... Bf8 {[%clk 0:01:30.7]} 33. h4
{[%clk 0:00:11.2]} 33... h5 {[%clk 0:01:29.1]} 34. g4 {[%clk 0:00:10.6]} 34...
f6 {[%clk 0:01:11]} 35. gxh5 {[%clk 0:00:10.4]} 35... Nh8 {[%clk 0:01:11.4]} 36.
Ne7+ {[%clk 0:00:07.4]} 36... Kf7 {[%clk 0:01:11.7]} 37. Nf5 {[%clk 0:00:04.7]}
37... Rd3 {[%clk 0:01:03.2]} 38. Rc8 {[%clk 0:00:04.2]} 38... c3 {[%clk
0:01:03.3]} 39. Rc7+ {[%clk 0:00:04.5]} 39... Ke6 {[%clk 0:01:02.4]} 40. e4
{[%clk 0:00:05.1]} 40... Nf7 {[%clk 0:01:00.4]} 41. Rc6+ {[%clk 0:00:03.8]}
41... Bd6 {[%clk 0:00:59.3]} 42. Ne3 {[%clk 0:00:03.8]} 42... Nd8 {[%clk
0:00:52]} 43. Rc8 {[%clk 0:00:04.4]} 43... Kd7 {[%clk 0:00:51.3]} 44. Rb8 {[%clk
0:00:04.5]} 44... Bxb8 {[%clk 0:00:50.9]} 0-1

[Event "*** Titled Tuesday Blitz"]
[Site "Chess.com"]
[Date "2020.05.19"]
[Round "1"]
[White "DaggiGretarsson"]
[Black "BronceYSueno"]
[Result "1-0"]
[WhiteElo "2612"]
[BlackElo "2316"]
[TimeControl "180+1"]
[EndTime "12:07:00 PDT"]
[Termination "DaggiGretarsson won by resignation"]

1. d4 {[%clk 0:02:58.9]} 1... Nf6 {[%clk 0:02:47]} 2. c4 {[%clk 0:02:58.4]} 2...
g6 {[%clk 0:02:46.8]} 3. Nc3 {[%clk 0:02:58]} 3... Bg7 {[%clk 0:02:45.6]} 4. e4
{[%clk 0:02:57.2]} 4... O-O {[%clk 0:02:45.5]} 5. f4 {[%clk 0:02:57.2]} 5... d6
{[%clk 0:02:44.6]} 6. Nf3 {[%clk 0:02:57.3]} 6... Bg4 {[%clk 0:02:45.1]} 7. Be3
{[%clk 0:02:41.6]} 7... c5 {[%clk 0:02:44.3]} 8. dxc5 {[%clk 0:02:29.9]} 8...
Qa5 {[%clk 0:02:28.4]} 9. Bd3 {[%clk 0:02:26]} 9... dxc5 {[%clk 0:02:26.4]} 10.
e5 {[%clk 0:02:21.3]} 10... Nfd7 {[%clk 0:02:22.5]} 11. h3 {[%clk 0:02:08.8]}
11... Bxf3 {[%clk 0:02:22.2]} 12. Qxf3 {[%clk 0:02:08.2]} 12... Nc6 {[%clk
0:02:22.7]} 13. O-O {[%clk 0:02:01.5]} 13... Rad8 {[%clk 0:02:15.6]} 14. Be4
{[%clk 0:01:56.9]} 14... Nb6 {[%clk 0:01:43.7]} 15. Bxc6 {[%clk 0:01:36.8]}
15... bxc6 {[%clk 0:01:42.3]} 16. Qxc6 {[%clk 0:01:36.6]} 16... Nxc4 {[%clk
0:01:41.2]} 17. Qxc5 {[%clk 0:01:36.2]} 17... Qxc5 {[%clk 0:01:19.4]} 18. Bxc5
{[%clk 0:01:35.4]} 18... Rfe8 {[%clk 0:01:20]} 19. b3 {[%clk 0:01:30.3]} 19...
Rc8 {[%clk 0:01:13.9]} 20. Na4 {[%clk 0:01:11.7]} 20... Nb2 {[%clk 0:00:56.2]}
21. Bxa7 {[%clk 0:00:44.3]} 21... Nxa4 {[%clk 0:00:55.7]} 22. bxa4 {[%clk
0:00:44.4]} 22... Ra8 {[%clk 0:00:56]} 23. Bc5 {[%clk 0:00:44.4]} 23... Rxa4
{[%clk 0:00:55.4]} 24. a3 {[%clk 0:00:44.6]} 24... f6 {[%clk 0:00:54.1]} 25. e6
{[%clk 0:00:43.8]} 25... f5 {[%clk 0:00:54.2]} 26. Rab1 {[%clk 0:00:40.7]} 26...
Bh6 {[%clk 0:00:46.9]} 27. g3 {[%clk 0:00:35.2]} 27... Re4 {[%clk 0:00:44.2]}
28. Rfe1 {[%clk 0:00:34]} 28... Rxe1+ {[%clk 0:00:38.4]} 29. Rxe1 {[%clk
0:00:33.3]} 29... Kg7 {[%clk 0:00:34]} 30. a4 {[%clk 0:00:29.6]} 30... Ra8
{[%clk 0:00:33.2]} 31. Bd4+ {[%clk 0:00:25.7]} 31... Kf8 {[%clk 0:00:32.4]} 32.
Ra1 {[%clk 0:00:25.3]} 32... Bg7 {[%clk 0:00:32.6]} 33. Bxg7+ {[%clk 0:00:24.3]}
33... Kxg7 {[%clk 0:00:33.5]} 34. a5 {[%clk 0:00:22.5]} 34... Kf6 {[%clk
0:00:31.9]} 35. a6 {[%clk 0:00:22.6]} 35... Kxe6 {[%clk 0:00:32.2]} 36. a7
{[%clk 0:00:22.8]} 36... Kd6 {[%clk 0:00:32.5]} 37. Kf2 {[%clk 0:00:23]} 37...
Kc6 {[%clk 0:00:33.1]} 38. Ke3 {[%clk 0:00:23.2]} 38... Kb6 {[%clk 0:00:32.7]}
39. Kd4 {[%clk 0:00:22.5]} 39... Rxa7 {[%clk 0:00:29.1]} 40. Rxa7 {[%clk
0:00:21.6]} 40... Kxa7 {[%clk 0:00:30]} 41. Ke5 {[%clk 0:00:21.9]} 1-0

[Event "*** Titled Tuesday Blitz"]
[Site "Chess.com"]
[Date "2020.05.19"]
[Round "1"]
[White "1f3_2g41-0"]
[Black "JustinWang1234"]
[Result "1-0"]
[WhiteElo "2312"]
[BlackElo "2567"]
[TimeControl "180+1"]
[EndTime "12:07:00 PDT"]
[Termination "1f3_2g41-0 won by resignation"]

1. e4 {[%clk 0:03:00.9]} 1... c5 {[%clk 0:02:59.3]} 2. Nf3 {[%clk 0:02:59.8]}
2... d6 {[%clk 0:02:57.3]} 3. d4 {[%clk 0:02:59.2]} 3... cxd4 {[%clk 0:02:53.7]}
4. Nxd4 {[%clk 0:03:00.1]} 4... Nf6 {[%clk 0:02:53.8]} 5. Nc3 {[%clk 0:03:00.2]}
5... a6 {[%clk 0:02:54.1]} 6. h3 {[%clk 0:03:00.6]} 6... e6 {[%clk 0:02:40.9]}
7. g4 {[%clk 0:02:59.7]} 7... Be7 {[%clk 0:02:40.4]} 8. Bg2 {[%clk 0:02:59.5]}
8... Nfd7 {[%clk 0:02:39.9]} 9. Be3 {[%clk 0:02:59.3]} 9... Qc7 {[%clk 0:02:33]}
10. Qe2 {[%clk 0:02:57.3]} 10... b5 {[%clk 0:02:11]} 11. e5 {[%clk 0:02:53.1]}
11... d5 {[%clk 0:02:06.4]} 12. O-O-O {[%clk 0:02:17.5]} 12... Nb6 {[%clk
0:02:01.2]} 13. f4 {[%clk 0:01:50.7]} 13... b4 {[%clk 0:01:45.6]} 14. Nb1 {[%clk
0:01:25.7]} 14... Nc4 {[%clk 0:01:43.9]} 15. Nd2 {[%clk 0:01:22.4]} 15... Nxe3
{[%clk 0:01:40.3]} 16. Qxe3 {[%clk 0:01:21.4]} 16... Nc6 {[%clk 0:01:33]} 17.
N2b3 {[%clk 0:01:19.1]} 17... Na7 {[%clk 0:01:16]} 18. f5 {[%clk 0:01:17.4]}
18... a5 {[%clk 0:01:15.5]} 19. f6 {[%clk 0:01:00.3]} 19... gxf6 {[%clk
0:01:11.5]} 20. Bxd5 {[%clk 0:00:54.8]} 20... Rb8 {[%clk 0:00:43.4]} 21. Nf5
{[%clk 0:00:40.4]} 21... fxe5 {[%clk 0:00:30]} 22. Ng7+ {[%clk 0:00:24.5]} 22...
Kf8 {[%clk 0:00:27.8]} 23. Qh6 {[%clk 0:00:25.2]} 23... Qd6 {[%clk 0:00:04.9]}
24. Nf5+ {[%clk 0:00:23.6]} 24... Ke8 {[%clk 0:00:05.3]} 25. Nxd6+ {[%clk
0:00:23.6]} 25... Bxd6 {[%clk 0:00:06.2]} 26. Be4 {[%clk 0:00:23.1]} 26... Be7
{[%clk 0:00:05.9]} 27. Qg7 {[%clk 0:00:22.4]} 27... Rf8 {[%clk 0:00:06.3]} 28.
Qxe5 {[%clk 0:00:22.4]} 28... Rb5 {[%clk 0:00:05.4]} 29. Bc6+ {[%clk 0:00:21.2]}
29... Nxc6 {[%clk 0:00:05.7]} 30. Qxb5 {[%clk 0:00:21.4]} 30... Bd7 {[%clk
0:00:05.2]} 31. Rxd7 {[%clk 0:00:18.4]} 31... Kxd7 {[%clk 0:00:05.4]} 32. Qb7+
{[%clk 0:00:18.8]} 32... Ke8 {[%clk 0:00:03.8]} 33. Qxc6+ {[%clk 0:00:18.3]} 1-0

[Event "*** Titled Tuesday Blitz"]
[Site "Chess.com"]
[Date "2020.05.19"]
[Round "1"]
[White "fidezivkovic"]
[Black "lupta_robin"]
[Result "0-1"]
[WhiteElo "2324"]
[BlackElo "2620"]
[TimeControl "180+1"]
[EndTime "12:07:01 PDT"]
[Termination "lupta_robin won on time"]

1. e4 {[%clk 0:03:00.9]} 1... c5 {[%clk 0:02:58.8]} 2. Nc3 {[%clk 0:03:00.1]}
2... Nc6 {[%clk 0:02:58.2]} 3. Bb5 {[%clk 0:02:58.3]} 3... Nd4 {[%clk
0:02:57.5]} 4. Nf3 {[%clk 0:02:57.9]} 4... Nxb5 {[%clk 0:02:56.9]} 5. Nxb5
{[%clk 0:02:57.2]} 5... d5 {[%clk 0:02:56.8]} 6. exd5 {[%clk 0:02:54.4]} 6... a6
{[%clk 0:02:57]} 7. Nc3 {[%clk 0:02:53.1]} 7... Nf6 {[%clk 0:02:57.4]} 8. d4
{[%clk 0:02:52.3]} 8... Nxd5 {[%clk 0:02:56.9]} 9. dxc5 {[%clk 0:02:50.4]} 9...
Nxc3 {[%clk 0:02:57.1]} 10. Qxd8+ {[%clk 0:02:49.4]} 10... Kxd8 {[%clk 0:02:58]}
11. bxc3 {[%clk 0:02:48.5]} 11... f6 {[%clk 0:02:58.3]} 12. O-O {[%clk 0:02:37]}
12... e5 {[%clk 0:02:58.2]} 13. Be3 {[%clk 0:02:35.3]} 13... Kc7 {[%clk
0:02:56.6]} 14. Rab1 {[%clk 0:02:32.1]} 14... Be6 {[%clk 0:02:53.1]} 15. a4
{[%clk 0:02:24.3]} 15... Be7 {[%clk 0:02:45.8]} 16. Rb6 {[%clk 0:02:19.3]} 16...
Bd5 {[%clk 0:02:45]} 17. Rfb1 {[%clk 0:02:17.8]} 17... Rhd8 {[%clk 0:02:41.9]}
18. Ne1 {[%clk 0:02:01.7]} 18... Bc6 {[%clk 0:02:16.9]} 19. a5 {[%clk
0:01:53.5]} 19... e4 {[%clk 0:02:04.5]} 20. f3 {[%clk 0:01:44.8]} 20... f5
{[%clk 0:01:57.6]} 21. fxe4 {[%clk 0:01:40.7]} 21... fxe4 {[%clk 0:01:57.8]} 22.
Bd4 {[%clk 0:01:28.5]} 22... Bf6 {[%clk 0:01:33.9]} 23. Bxf6 {[%clk 0:01:14.3]}
23... gxf6 {[%clk 0:01:34.8]} 24. Kf2 {[%clk 0:01:14.2]} 24... Rd2+ {[%clk
0:01:24.1]} 25. Ke3 {[%clk 0:01:12.2]} 25... Rad8 {[%clk 0:01:24.3]} 26. c4
{[%clk 0:01:03.4]} 26... f5 {[%clk 0:01:14.3]} 27. R6b4 {[%clk 0:00:58.8]} 27...
h5 {[%clk 0:01:04.3]} 28. Kf4 {[%clk 0:00:51.8]} 28... Rf2+ {[%clk 0:01:00.8]}
29. Kg5 {[%clk 0:00:50]} 29... f4 {[%clk 0:00:56.1]} 30. Kxh5 {[%clk 0:00:47.3]}
30... Rg8 {[%clk 0:00:45.8]} 31. h4 {[%clk 0:00:20.1]} 31... Rf1 {[%clk
0:00:38.2]} 32. R4b3 {[%clk 0:00:16.7]} 32... Rh1 {[%clk 0:00:35.2]} 33. c3
{[%clk 0:00:13.5]} 33... Be8+ {[%clk 0:00:33.4]} 0-1